bitfinex/quotes_BTCUSD_20240611
["timestamp","ask_amount","ask_price","bid_price","bid_amount"]
[1718118459714,0.50233366,66756.0,66755.0,0.001]
[1718118459930,0.57883366,66756.0,66755.0,0.001]
[1718118460328,0.55883366,66756.0,66755.0,0.001]
[1718118460929,0.55883366,66756.0,66737.0,0.48596646]
[1718118460930,0.09943955,66740.0,66737.0,0.03045864]
[1718118461100,0.39134073,66740.0,66739.0,0.01918612]
[1718118461289,0.21105187,66740.0,66739.0,0.01918612]
[1718118461720,0.41105187,66740.0,66739.0,0.01918612]
[1718118461924,0.43105187,66740.0,66739.0,0.00086]
[1718118462121,0.43105187,66740.0,66739.0,0.00186]
[1718118462326,0.43205187,66740.0,66739.0,0.00186]
[1718118462555,0.41205187,66740.0,66739.0,0.00186]
[1718118462767,0.43105187,66740.0,66739.0,0.00186]
[1718118463182,0.21205187,66740.0,66739.0,0.00186]
[1718118463386,0.21105187,66740.0,66739.0,0.00186]
[1718118463818,0.21205187,66740.0,66739.0,0.00186]
[1718118464248,0.41205187,66740.0,66739.0,0.151697]
[1718118464462,0.43205187,66740.0,66739.0,0.151697]
[1718118464673,0.21205187,66740.0,66739.0,0.150697]
[1718118465106,0.02071114,66740.0,66739.0,0.29501693]
[1718118465321,0.09943955,66761.0,66749.0,0.299629]
[1718118465532,0.19134073,66761.0,66760.0,0.32749]
[1718118465743,0.09943955,66755.0,66748.0,0.5]
[1718118465957,0.07215996,66754.0,66750.0,0.1777]
[1718118466164,0.07215996,66754.0,66746.0,0.1777]
[1718118466388,0.07215996,66754.0,66746.0,0.32201993]
[1718118466617,0.07215996,66754.0,66739.0,0.12818637]
[1718118466618,0.09943955,66744.0,66739.0,0.00086]
[1718118466822,0.1619,66743.0,66739.0,0.00086]
[1718118467034,0.09943955,66741.0,66739.0,0.00086]
[1718118467236,0.09943955,66741.0,66740.0,0.149835]
[1718118467662,0.19134073,66740.0,66739.0,0.150697]
[1718118468503,0.09190118,66740.0,66739.0,0.150697]
[1718118470492,0.09190118,66741.0,66739.0,0.00086]
[1718118470717,0.19134073,66746.0,66745.0,0.149823]
[1718118470921,0.39134073,66746.0,66745.0,0.149823]
[1718118471352,0.19134073,66746.0,66745.0,0.149823]
[1718118471742,0.19134073,66746.0,66745.0,0.35299757]
[1718118472555,0.19334073,66746.0,66745.0,0.35299757]
[1718118472976,0.21097732,66746.0,66745.0,0.35299757]
[1718118473508,0.21897732,66746.0,66745.0,0.35299757]
[1718118474544,0.43897732,66746.0,66745.0,0.35299757]
[1718118474748,0.21897732,66746.0,66745.0,0.35299757]
[1718118474957,0.02763659,66746.0,66745.0,0.35299757]
[1718118475158,0.11953777,66746.0,66745.0,0.35299757]
[1718118475357,0.02763659,66746.0,66745.0,0.22752278]
[1718118475562,0.12707614,66746.0,66745.0,0.20414487]
[1718118475772,0.12707614,66746.0,66745.0,0.35396787]
[1718118475978,0.02763659,66746.0,66745.0,0.35396787]
[1718118476430,0.02563659,66746.0,66745.0,0.35396787]
[1718118478103,0.01763659,66746.0,66745.0,0.27626809]
[1718118478306,0.01763659,66746.0,66745.0,0.35496586]
[1718118478512,0.23763659,66746.0,66745.0,0.35496586]
[1718118478687,0.01763659,66746.0,66745.0,0.35496586]
[1718118480639,0.01763659,66746.0,66745.0,0.35496542]
[1718118481407,0.01763659,66746.0,66745.0,0.27726809]
[1718118481692,0.01503901,66746.0,66745.0,0.65461237]
[1718118482064,0.01503901,66746.0,66745.0,0.35756295]
[1718118482300,0.21503901,66746.0,66745.0,0.35756295]
[1718118482491,0.01503901,66746.0,66745.0,0.35756295]
[1718118482675,0.21503901,66746.0,66745.0,0.35756295]
[1718118482889,0.23503901,66746.0,66745.0,0.35756295]
[1718118483089,0.01503901,66746.0,66745.0,0.35756295]
[1718118484078,0.01503901,66746.0,66745.0,0.35832792]
[1718118484484,0.01503901,66746.0,66745.0,0.35732792]
[1718118485089,0.09190118,66747.0,66746.0,0.149821]
[1718118485293,0.09190118,66747.0,66746.0,0.35472834]
[1718118485869,0.48350069,66749.0,66748.0,0.149817]
[1718118486092,0.48350069,66749.0,66748.0,0.35472434]
[1718118487149,0.63670069,66749.0,66748.0,0.20490734]
[1718118487356,0.71470069,66749.0,66748.0,0.20490734]
[1718118487562,0.71470069,66749.0,66748.0,0.20639291]
[1718118487772,0.71870069,66749.0,66748.0,0.20639291]
[1718118489028,0.69870069,66749.0,66748.0,0.20639291]
[1718118489226,0.71870069,66749.0,66748.0,0.20639291]
[1718118489457,0.73611156,66749.0,66748.0,0.20639291]
[1718118491199,0.73611156,66749.0,66748.0,0.20639595]
[1718118491626,0.4327516,66749.0,66748.0,0.35621295]
[1718118492236,0.4327516,66749.0,66748.0,0.20639595]
[1718118492453,0.4327516,66749.0,66748.0,0.20639798]
[1718118493416,0.4327516,66749.0,66748.0,0.20639857]
[1718118494079,0.81247153,66749.0,66748.0,0.20639857]
[1718118494278,0.82247153,66749.0,66748.0,0.20639857]
[1718118494455,0.99528553,66749.0,66748.0,0.20639857]
[1718118494811,0.99528553,66749.0,66748.0,0.07870297]
[1718118495137,1.13925201,66749.0,66748.0,0.001]
[1718118495746,1.13525201,66749.0,66748.0,0.001]
[1718118495948,0.32190118,66746.0,66745.0,0.00259758]
[1718118496166,0.97472714,66746.0,66745.0,0.00259758]
[1718118496365,0.23,66740.0,66739.0,0.00086]
[1718118496583,0.71585948,66740.0,66739.0,0.00086]
[1718118496827,0.80776066,66740.0,66739.0,0.00086]
[1718118497029,0.82517153,66740.0,66739.0,0.00086]
[1718118497318,0.97500653,66740.0,66739.0,0.00086]
[1718118497527,0.99800653,66740.0,66739.0,0.00086]
[1718118497959,1.10780718,66740.0,66739.0,0.00086]
[1718118498158,0.99800653,66740.0,66739.0,0.00086]
[1718118498460,0.81197973,66738.0,66737.0,0.00048864]
[1718118498667,0.97929966,66738.0,66737.0,0.00048864]
[1718118499077,0.98671053,66738.0,66737.0,0.00048864]
[1718118499458,0.99671053,66738.0,66737.0,0.00048864]
[1718118499700,1.21409758,66738.0,66737.0,0.00048864]
[1718118499922,0.64994073,66726.0,66725.0,0.4718]
[1718118500129,0.29190118,66722.0,66721.0,0.0448842]
[1718118500552,0.29190118,66722.0,66720.0,1.00236]
[1718118500553,0.41134073,66721.0,66720.0,1.00236]
[1718118500998,0.57281402,66721.0,66720.0,1.00236]
[1718118501886,0.57261402,66721.0,66720.0,1.00236]
[1718118502097,0.90237142,66721.0,66720.0,1.00236]
[1718118502296,0.81401402,66721.0,66720.0,1.00236]
[1718118502734,0.44969409,66721.0,66720.0,1.15224]
[1718118502960,0.20829409,66721.0,66720.0,1.15224]
[1718118503400,0.19114073,66721.0,66720.0,1.15224]
[1718118503612,0.19814073,66721.0,66720.0,1.15224]
[1718118503824,0.007,66721.0,66720.0,1.15224]
[1718118504047,0.07215996,66725.0,66724.0,0.149871]
[1718118504048,0.16406114,66725.0,66724.0,0.149871]
[1718118504248,0.16406114,66725.0,66724.0,0.327571]
[1718118504494,0.1812145,66725.0,66724.0,0.327571]
[1718118504668,0.16406114,66725.0,66724.0,0.327571]
[1718118505129,0.09923955,66721.0,66720.0,1.00236]
[1718118505349,0.18163955,66721.0,66720.0,1.15224]
[1718118505561,0.49354073,66721.0,66720.0,1.15224]
[1718118505779,0.88120409,66721.0,66720.0,1.00236]
[1718118505996,0.80921402,66721.0,66720.0,1.00236]
[1718118506849,0.66489409,66721.0,66720.0,1.00236]
[1718118507333,0.99009102,66721.0,66720.0,1.00236]
[1718118507570,0.99009102,66721.0,66720.0,0.83576]
[1718118507571,0.82721402,66721.0,66720.0,0.83576]
[1718118507774,1.05743912,66721.0,66720.0,0.83576]
[1718118507948,0.91721402,66721.0,66720.0,0.83576]
[1718118508196,0.90921402,66721.0,66720.0,0.83576]
[1718118509183,0.80921402,66721.0,66720.0,0.83576]
[1718118509393,0.20829409,66721.0,66720.0,0.83576]
[1718118509678,0.01715336,66721.0,66720.0,1.16334]
[1718118509904,0.02415336,66721.0,66720.0,1.16334]
[1718118510144,0.09923955,66725.0,66724.0,0.149871]
[1718118511057,0.19114073,66725.0,66724.0,0.149871]
[1718118511762,0.09923955,66730.0,66721.0,0.299755]
[1718118511975,0.09190118,66728.0,66721.0,0.44407493]
[1718118512221,0.004,66725.0,66724.0,0.149871]
[1718118512409,0.10323955,66725.0,66724.0,0.149871]
[1718118512610,0.10323955,66725.0,66724.0,0.1777]
[1718118512822,0.12024069,66725.0,66724.0,0.327571]
[1718118513047,0.11624069,66725.0,66724.0,0.327571]
[1718118513276,0.01700114,66725.0,66724.0,0.327571]
[1718118513488,0.19114073,66727.0,66726.0,0.149866]
[1718118513899,0.20824081,66727.0,66726.0,0.149866]
[1718118514113,0.09923955,66727.0,66726.0,0.149866]
[1718118514326,0.19114073,66727.0,66726.0,0.149866]
[1718118514527,0.09190118,66727.0,66726.0,0.149866]
[1718118514767,0.09923955,66731.0,66724.0,0.1777]
[1718118514946,0.09190118,66731.0,66728.0,0.157]
[1718118515157,0.50835979,66742.0,66726.0,0.001]
[1718118515158,0.39114073,66727.0,66726.0,0.001]
[1718118515362,0.09923955,66721.0,66720.0,0.83576]
[1718118515566,0.19114073,66721.0,66720.0,1.16334]
[1718118515769,0.20824081,66721.0,66720.0,1.16334]
[1718118516312,0.40824081,66721.0,66720.0,1.16334]
[1718118516551,0.40824081,66721.0,66720.0,0.98564]
[1718118516750,0.40824081,66721.0,66720.0,1.16334]
[1718118516968,0.20824081,66721.0,66720.0,1.16334]
[1718118517169,0.41114073,66721.0,66720.0,0.98564]
[1718118517392,0.42824081,66721.0,66720.0,0.98564]
[1718118517805,0.42824081,66721.0,66720.0,1.16334]
[1718118518229,0.19114073,66712.0,66711.0,0.0447786]
[1718118518435,0.19114073,66712.0,66711.0,0.27634429]
[1718118518652,0.20824081,66712.0,66711.0,0.27634429]
[1718118519280,0.10900126,66712.0,66711.0,0.42624838]
[1718118519522,0.26914073,66712.0,66711.0,0.09864838]
[1718118519723,0.28624081,66712.0,66711.0,0.27634838]
[1718118519936,0.20824081,66712.0,66711.0,0.42624838]
[1718118520146,0.11633963,66712.0,66711.0,0.42624838]
[1718118520358,0.28040077,66712.0,66711.0,0.42624838]
[1718118520592,0.28040077,66712.0,66711.0,0.27634838]
[1718118520809,0.6447207,66712.0,66711.0,0.27634838]
[1718118521050,0.6457207,66712.0,66711.0,0.09964838]
[1718118521272,0.73358277,66712.0,66711.0,0.09964838]
[1718118521509,1.16178077,66712.0,66711.0,0.09864838]
[1718118521741,0.41114073,66710.0,66709.0,0.00855]
[1718118521965,0.70463894,66710.0,66709.0,0.00855]
[1718118522213,0.41114073,66710.0,66709.0,0.00855]
[1718118522420,0.42824081,66710.0,66709.0,0.00855]
[1718118523682,0.20824081,66710.0,66709.0,0.158454]
[1718118524739,0.21324081,66710.0,66709.0,0.158454]
[1718118524935,0.21324081,66710.0,66709.0,0.336154]
[1718118525144,0.20824081,66710.0,66709.0,0.158454]
[1718118525560,0.42824081,66710.0,66709.0,0.18725]
[1718118525767,0.61538482,66710.0,66709.0,0.00855]
[1718118525975,0.84928482,66710.0,66709.0,0.00855]
[1718118526184,0.80646074,66710.0,66709.0,0.00855]
[1718118526395,0.80646074,66710.0,66709.0,0.00955]
[1718118526602,0.80646074,66710.0,66709.0,0.00855]
[1718118527870,0.66214081,66710.0,66709.0,0.00855]
[1718118528075,0.20824081,66710.0,66709.0,0.18625]
[1718118528274,0.40824081,66710.0,66709.0,0.336154]
[1718118528687,0.42824081,66710.0,66709.0,0.336154]
[1718118528886,0.40824081,66710.0,66709.0,0.336154]
[1718118529092,0.20824081,66710.0,66709.0,0.337154]
[1718118529507,0.40824081,66710.0,66709.0,0.159454]
[1718118529713,0.40824081,66710.0,66709.0,0.336154]
[1718118530146,0.40824081,66710.0,66709.0,0.337154]
[1718118530360,0.40824081,66710.0,66709.0,0.336154]
[1718118530798,0.40924081,66710.0,66709.0,0.336154]
[1718118532068,0.42924081,66710.0,66709.0,0.158454]
[1718118532294,0.40924081,66710.0,66709.0,0.158454]
[1718118532712,0.20924081,66710.0,66709.0,0.158454]
[1718118533288,0.47216489,66710.0,66709.0,0.158454]
[1718118533476,0.40924081,66710.0,66709.0,0.158454]
[1718118533698,0.42924081,66710.0,66709.0,0.158454]
[1718118535452,0.81096074,66710.0,66709.0,0.00855]
[1718118535670,0.92605681,66710.0,66709.0,0.00855]
[1718118535879,1.02605681,66710.0,66709.0,0.00855]
[1718118536092,0.91096074,66710.0,66709.0,0.00855]
[1718118536582,0.91096074,66710.0,66690.0,0.0447668]
[1718118536583,0.19114073,66689.0,66687.0,0.06285667]
[1718118536825,0.19114073,66689.0,66681.0,0.11191701]
[1718118536826,0.19190118,66673.0,66672.0,0.00018]
[1718118537064,0.09190118,66661.0,66660.0,0.04479676]
[1718118537309,0.20796187,66661.0,66660.0,0.1096394]
[1718118537551,0.57144073,66658.0,66657.0,0.00856]
[1718118537776,0.41114073,66651.0,66642.0,0.50924318]
[1718118538012,0.29190118,66643.0,66642.0,0.00855]
[1718118538235,0.19114073,66643.0,66642.0,0.00855]
[1718118538700,0.39289587,66643.0,66642.0,0.00855]
[1718118538907,0.39289587,66643.0,66642.0,0.01355]
[1718118538908,0.3522818,66643.0,66642.0,0.01355]
[1718118539122,0.3522818,66643.0,66642.0,0.00855]
[1718118539123,0.10872232,66643.0,66642.0,0.00855]
[1718118539329,0.01676445,66643.0,66642.0,0.00855]
[1718118539545,0.10499887,66643.0,66642.0,0.00855]
[1718118539763,0.09923955,66655.0,66642.0,0.00855]
[1718118539988,0.09923955,66663.0,66643.0,0.25558909]
[1718118540197,0.09923955,66668.0,66660.0,0.4458]
[1718118540412,0.09923955,66668.0,66661.0,0.08129916]
[1718118540610,0.03464612,66670.0,66667.0,0.2229]
[1718118540813,0.09923955,66683.0,66669.0,0.2225]
[1718118541017,0.09923955,66682.0,66671.0,0.02997]
[1718118541253,0.09923955,66682.0,66670.0,0.24642103]
[1718118541254,0.09923955,66689.0,66681.0,0.2229]
[1718118541459,0.09923955,66696.0,66688.0,0.2229]
[1718118541711,0.09923955,66696.0,66681.0,0.14431993]
[1718118541712,0.09923955,66696.0,66695.0,0.2229]
[1718118541970,0.01800287,66697.0,66695.0,0.2229]
[1718118542154,0.05964612,66696.0,66695.0,0.2229]
[1718118542356,0.09923955,66701.0,66695.0,0.24519]
[1718118542564,0.09923955,66700.0,66695.0,0.24519]
[1718118542767,0.09923955,66691.0,66687.0,0.2229]
[1718118542980,0.03464612,66696.0,66688.0,0.14431993]
[1718118543189,0.04964612,66696.0,66695.0,0.2229]
[1718118543391,0.015,66702.0,66699.0,0.00076045]
[1718118543603,0.1,66704.0,66701.0,0.2229]
[1718118543812,0.0446209,66710.0,66703.0,0.2229]
[1718118544017,0.0446209,66710.0,66704.0,0.023]
[1718118544227,0.0446209,66710.0,66707.0,0.5]
[1718118544432,0.0446209,66710.0,66709.0,0.32286045]
[1718118544632,0.09923955,66718.0,66709.0,0.38941993]
[1718118544874,0.000946,66721.0,66717.0,0.2229]
[1718118545078,0.000946,66721.0,66720.0,0.00076045]
[1718118545285,0.000946,66721.0,66720.0,0.17505038]
[1718118545500,0.000946,66721.0,66720.0,0.29805038]
[1718118545757,0.000946,66747.0,66734.0,0.0712]
[1718118545983,0.45295979,66746.0,66741.0,0.00076045]
[1718118546239,0.000946,66747.0,66746.0,0.22366045]
[1718118546417,0.000946,66747.0,66746.0,0.55749791]
[1718118546627,0.09923955,66776.0,66755.0,0.00076045]
[1718118546850,0.000946,66778.0,66775.0,0.2229]
[1718118547104,0.000946,66778.0,66777.0,0.1508]
[1718118547310,0.000946,66778.0,66777.0,0.35801966]
[1718118547540,0.00940501,66787.0,66777.0,0.35801966]
[1718118547541,0.00940501,66787.0,66779.0,0.00076045]
[1718118547776,0.00940501,66787.0,66786.0,0.2229]
[1718118547990,0.00940501,66787.0,66786.0,0.47631966]
[1718118548192,0.00940501,66787.0,66786.0,0.65819118]
[1718118548412,0.00940501,66787.0,66786.0,0.17763197]
[1718118548632,0.00940501,66787.0,66786.0,0.26431993]
[1718118548885,0.00940501,66787.0,66786.0,0.1]
[1718118549093,0.00940501,66787.0,66786.0,0.24431993]
[1718118549300,0.00940501,66787.0,66786.0,0.30344781]
[1718118549737,0.00940501,66787.0,66786.0,0.32420826]
[1718118549940,0.00940501,66787.0,66786.0,0.42545451]
[1718118550156,0.001,66788.0,66787.0,0.27048945]
[1718118550362,0.000946,66813.0,66800.0,0.1497]
[1718118550573,0.000946,66813.0,66812.0,0.3161]
[1718118550801,0.00943801,66821.0,66819.0,0.149657]
[1718118551024,0.00943801,66821.0,66820.0,0.1488022]
[1718118551237,0.009416,66838.0,66830.0,0.10076045]
[1718118551440,0.009416,66838.0,66835.0,0.25038245]
[1718118551648,0.009416,66838.0,66835.0,0.47383026]
[1718118551856,0.009416,66838.0,66835.0,0.43770238]
[1718118552066,0.009416,66838.0,66835.0,0.46112208]
[1718118552284,0.09923955,66859.0,66843.0,0.27036445]
[1718118552495,0.09923955,66859.0,66843.0,0.75378438]
[1718118552738,0.09923955,66862.0,66857.0,0.1]
[1718118552953,0.17139951,66873.0,66861.0,0.1]
[1718118553172,0.09923955,66874.0,66862.0,0.31616893]
[1718118553379,0.09923955,66875.0,66868.0,0.1]
[1718118553611,0.09923955,66882.0,66869.0,0.14431993]
[1718118553817,0.1762,66891.0,66870.0,0.3161]
[1718118553818,0.09923955,66886.0,66870.0,0.3161]
[1718118554035,0.09923955,66889.0,66873.0,0.00076045]
[1718118554242,0.09923955,66890.0,66880.0,0.14952]
[1718118554454,0.1601,66902.0,66883.0,0.149514]
[1718118554455,0.09923955,66893.0,66883.0,0.149514]
[1718118554674,0.09923955,66893.0,66884.0,0.14431993]
[1718118554877,0.09923955,66895.0,66887.0,0.1]
[1718118555094,0.09923955,66895.0,66887.0,0.14431993]
[1718118555311,0.09923955,66890.0,66889.0,0.1]
[1718118555721,0.40175948,66890.0,66889.0,0.0999519]
[1718118555926,0.48405948,66890.0,66889.0,0.0999519]
[1718118556132,0.48405948,66890.0,66869.0,0.1]
[1718118556133,0.09923955,66880.0,66879.0,0.0999519]
[1718118556339,0.24355948,66880.0,66879.0,0.0999519]
[1718118556556,0.09923955,66865.0,66863.0,0.07713498]
[1718118556770,0.09923955,66865.0,66855.0,0.20200169]
[1718118556771,0.09923955,66865.0,66857.0,0.3161]
[1718118556981,0.09923955,66860.0,66858.0,0.1]
[1718118557195,0.09923955,66859.0,66858.0,0.1]
[1718118557422,0.09923955,66852.0,66851.0,0.249585]
[1718118557638,0.07215996,66864.0,66853.0,0.149581]
[1718118557639,0.09923955,66854.0,66853.0,0.149581]
[1718118557840,0.09923955,66854.0,66853.0,0.1665391]
[1718118558045,0.09923955,66847.0,66842.0,0.149606]
[1718118558263,0.09923955,66846.0,66842.0,0.149606]
[1718118558464,0.01280135,66846.0,66845.0,0.149599]
[1718118558762,0.1120409,66846.0,66845.0,0.149599]
[1718118558920,0.09923955,66843.0,66842.0,0.02]
[1718118559103,0.01280135,66846.0,66845.0,0.149599]
[1718118559307,0.09923955,66851.0,66846.0,0.149595]
[1718118559682,0.09923955,66853.0,66850.0,0.149588]
[1718118559883,0.09923955,66865.0,66851.0,0.14431993]
[1718118560135,0.1581,66873.0,66854.0,0.07215996]
[1718118560136,0.09664904,66873.0,66854.0,0.07215996]
[1718118560333,0.005,66880.0,66873.0,0.149535]
[1718118560334,0.09664904,66879.0,66873.0,0.149535]
[1718118560543,0.09664904,66884.0,66874.0,0.149533]
[1718118560690,0.1581,66893.0,66874.0,0.149533]
[1718118560691,0.09664904,66885.0,66878.0,0.149525]
[1718118560891,0.25474904,66893.0,66879.0,0.15030032]
[1718118561094,0.09664904,66893.0,66882.0,0.02]
[1718118561290,0.09664904,66893.0,66883.0,0.18434996]
[1718118561716,0.0809,66899.0,66883.0,0.18434996]
[1718118561717,0.09664904,66886.0,66883.0,0.01703003]
[1718118561929,0.09664904,66879.0,66870.0,0.02]
[1718118562159,0.09664904,66889.0,66874.0,0.02]
[1718118562355,0.09664904,66895.0,66877.0,0.02335096]
[1718118562554,0.07215996,66909.0,66879.0,0.00335096]
[1718118562799,0.09664904,66900.0,66884.0,0.1542]
[1718118563007,0.07215996,66909.0,66885.0,0.24880702]
[1718118563008,0.09664904,66895.0,66885.0,0.24880702]
[1718118563260,0.09664904,66900.0,66896.0,0.149485]
[1718118563719,0.09664904,66902.0,66896.0,0.149485]
[1718118563866,0.1,66907.0,66896.0,0.14431993]
[1718118564102,0.0822,66925.0,66885.0,0.08448709]
[1718118564103,0.001,66900.0,66897.0,0.14659712]
[1718118564319,0.1,66913.0,66898.0,0.03765971]
[1718118564528,0.1,66919.0,66909.0,0.149456]
[1718118564745,0.1,66919.0,66910.0,0.0028081]
[1718118564946,0.1,66919.0,66910.0,0.00597733]
[1718118565157,0.1,66913.0,66909.0,0.1900246]
[1718118565400,0.1,66899.0,66898.0,0.01465971]
[1718118565826,0.01303708,66899.0,66898.0,0.15897964]
[1718118566028,0.013326,66911.0,66910.0,0.149454]
[1718118566274,0.013326,66911.0,66910.0,0.34928793]
[1718118566501,0.013326,66911.0,66910.0,0.46351933]
[1718118566705,0.013326,66911.0,66910.0,0.66351933]
[1718118566919,0.013326,66911.0,66910.0,0.68651933]
[1718118567122,0.013326,66911.0,66910.0,0.48651933]
[1718118567328,0.015326,66911.0,66910.0,0.3201994]
[1718118567559,0.113326,66911.0,66910.0,0.150454]
[1718118567767,0.12636308,66911.0,66910.0,0.150454]
[1718118567983,0.12636308,66911.0,66910.0,0.152454]
[1718118567984,0.02636308,66911.0,66910.0,0.152454]
[1718118568376,0.02636308,66911.0,66910.0,0.29377393]
[1718118568632,0.013326,66911.0,66910.0,0.29377393]
[1718118568754,0.013326,66911.0,66910.0,0.32315132]
[1718118569150,0.013326,66911.0,66910.0,0.17883139]
[1718118569572,0.013326,66911.0,66910.0,0.17983139]
[1718118569809,0.013326,66911.0,66910.0,0.18283139]
[1718118570259,0.013326,66911.0,66910.0,0.17883139]
[1718118570665,0.013326,66911.0,66910.0,0.18283139]
[1718118570875,0.033326,66911.0,66910.0,0.17983139]
[1718118571104,0.013326,66911.0,66910.0,0.17983139]
[1718118571313,0.02655975,66911.0,66910.0,0.18183139]
[1718118571576,0.02655975,66911.0,66910.0,0.17983139]
[1718118571798,0.133326,66911.0,66910.0,0.001]
[1718118572050,0.14655975,66911.0,66910.0,0.001]
[1718118572251,0.53197968,66911.0,66910.0,0.001]
[1718118572867,0.54197968,66911.0,66910.0,0.001]
[1718118573078,0.02,66900.0,66899.0,0.00210626]
[1718118573281,0.1,66901.0,66899.0,0.00210626]
[1718118573486,0.02,66900.0,66899.0,0.00210626]
[1718118573726,0.01323375,66900.0,66899.0,0.00210626]
[1718118573945,0.20539371,66900.0,66899.0,0.00210626]
[1718118574147,0.18539371,66900.0,66899.0,0.00210626]
[1718118574358,0.20539371,66900.0,66899.0,0.00210626]
[1718118574558,0.20539371,66900.0,66899.0,0.00310626]
[1718118574975,0.34971364,66900.0,66899.0,0.00510626]
[1718118575187,0.01323375,66900.0,66899.0,0.29590519]
[1718118575409,0.19215996,66910.0,66899.0,0.17601671]
[1718118575637,0.19215996,66910.0,66899.0,0.14642619]
[1718118575867,0.01323375,66909.0,66908.0,0.149458]
[1718118576079,0.02,66902.0,66901.0,0.149474]
[1718118576286,0.12,66902.0,66901.0,0.149474]
[1718118576506,0.12,66900.0,66899.0,0.00210626]
[1718118576949,0.1,66902.0,66900.0,0.149476]
[1718118577186,0.1,66903.0,66899.0,0.00410626]
[1718118577425,0.09215996,66902.0,66899.0,0.15258326]
[1718118577655,0.12,66900.0,66899.0,0.15158326]
[1718118577897,0.12,66900.0,66899.0,0.15458326]
[1718118578118,0.12,66900.0,66899.0,0.00610626]
[1718118578337,0.12,66900.0,66899.0,0.00310626]
[1718118578550,0.12,66900.0,66899.0,0.15258526]
[1718118578754,0.1,66900.0,66899.0,0.16784379]
[1718118578965,0.1,66903.0,66899.0,0.01736479]
[1718118579175,0.1,66903.0,66899.0,0.00210626]
[1718118579391,0.12,66903.0,66902.0,0.149472]
[1718118580032,0.12,66900.0,66899.0,0.00210626]
[1718118580463,0.27505045,66900.0,66899.0,0.00210626]
[1718118580654,0.43865045,66900.0,66899.0,0.00410626]
[1718118580868,0.51789903,66900.0,66899.0,0.00410626]
[1718118581082,0.51789903,66900.0,66899.0,0.00310626]
[1718118581280,0.51789903,66900.0,66899.0,0.00210626]
[1718118581436,0.67221896,66900.0,66899.0,0.00210626]
[1718118581648,0.67221896,66900.0,66899.0,0.00310626]
[1718118582080,0.66421896,66900.0,66899.0,0.00310626]
[1718118582290,0.51989903,66900.0,66899.0,0.00210626]
[1718118582500,0.51991196,66900.0,66899.0,0.00210626]
[1718118582916,0.51791196,66900.0,66899.0,0.00210626]
[1718118583119,0.49791196,66900.0,66899.0,0.00210626]
[1718118583324,0.26821196,66900.0,66899.0,0.01726479]
[1718118583743,0.11314858,66900.0,66899.0,0.01726479]
[1718118583960,0.2681817,66900.0,66899.0,0.01726479]
[1718118584186,0.26558355,66900.0,66899.0,0.01726479]
[1718118584597,0.27158355,66900.0,66899.0,0.00310626]
[1718118584814,0.27158355,66900.0,66899.0,0.00410626]
[1718118585023,0.26558367,66900.0,66899.0,0.00310626]
[1718118585239,0.26558367,66900.0,66899.0,0.00210626]
[1718118585445,0.26558367,66900.0,66899.0,0.00510626]
[1718118585649,0.26558367,66900.0,66899.0,0.01856479]
[1718118586050,0.26558367,66900.0,66899.0,0.02156479]
[1718118586458,0.26558367,66900.0,66899.0,0.01856479]
[1718118587057,0.28558367,66900.0,66899.0,0.01856479]
[1718118587262,0.26558367,66900.0,66899.0,0.01856479]
[1718118587463,0.26558367,66900.0,66899.0,0.01756479]
[1718118587464,0.28558367,66900.0,66899.0,0.01756479]
[1718118587665,0.26558367,66900.0,66899.0,0.01756479]
[1718118587946,0.26558367,66900.0,66899.0,0.02156479]
[1718118588096,0.16818182,66900.0,66899.0,0.02156479]
[1718118589028,0.16818182,66900.0,66899.0,0.02056479]
[1718118589233,0.16818182,66900.0,66899.0,0.01756479]
[1718118589451,0.16818182,66900.0,66899.0,0.01856479]
[1718118590138,0.16818182,66900.0,66899.0,0.02156479]
[1718118590801,0.16818182,66900.0,66899.0,0.32068472]
[1718118590940,0.16818182,66900.0,66899.0,0.34268472]
[1718118591550,0.15503324,66900.0,66899.0,0.34268472]
[1718118591772,0.15503324,66900.0,66899.0,0.54628287]
[1718118592038,0.43295979,66917.0,66910.0,0.149454]
[1718118592212,0.3801151,66911.0,66910.0,0.1643994]
[1718118592369,0.16832912,66911.0,66910.0,0.1643994]
[1718118593435,0.16832912,66911.0,66910.0,0.83062733]
[1718118593637,0.16832912,66911.0,66910.0,0.63162733]
[1718118593638,0.18032912,66911.0,66910.0,0.63162733]
[1718118593852,0.18032912,66911.0,66910.0,0.83162733]
[1718118594530,0.18032912,66911.0,66910.0,1.13313348]
[1718118594738,0.18032912,66911.0,66910.0,1.23313348]
[1718118595136,0.16832912,66911.0,66910.0,1.26210348]
[1718118595346,0.17332912,66911.0,66910.0,1.41690348]
[1718118595580,0.43295979,66934.0,66923.0,0.2]
[1718118595807,0.43295979,66934.0,66924.0,0.18757975]
[1718118595983,0.07215996,66935.0,66933.0,0.149403]
[1718118596450,0.02,66934.0,66933.0,0.149403]
[1718118596843,0.11740185,66934.0,66933.0,0.149403]
[1718118597077,0.11840185,66934.0,66933.0,0.149403]
[1718118597281,0.11840185,66934.0,66933.0,0.1643433]
[1718118597489,0.09840185,66934.0,66933.0,0.1643433]
[1718118597713,0.11840185,66934.0,66933.0,0.12931044]
[1718118597923,0.09840185,66934.0,66924.0,0.02025982]
[1718118598159,0.07215996,66927.0,66925.0,0.42781187]
[1718118598379,0.07215996,66927.0,66925.0,0.42305985]
[1718118598587,0.07215996,66927.0,66926.0,0.12931992]
[1718118598802,0.43396181,66927.0,66926.0,0.12931992]
[1718118599233,0.02,66922.0,66920.0,0.14943]
[1718118599436,0.02,66921.0,66920.0,0.14943]
[1718118599849,0.02,66921.0,66920.0,0.28042882]
[1718118600262,0.09740185,66921.0,66920.0,0.28042882]
[1718118600477,0.11740185,66921.0,66920.0,0.13099882]
[1718118600693,0.11740185,66921.0,66903.0,0.059776]
[1718118600694,0.02,66905.0,66903.0,0.059776]
[1718118600910,0.18956181,66904.0,66903.0,0.059776]
[1718118601129,0.18956181,66904.0,66903.0,0.19134001]
[1718118601130,0.16956181,66904.0,66903.0,0.19134001]
[1718118601555,0.07215996,66911.0,66903.0,0.33565994]
[1718118601764,0.02,66917.0,66912.0,0.14945]
[1718118602001,0.02,66913.0,66912.0,0.14945]
[1718118602208,0.16956181,66918.0,66904.0,0.18078005]
[1718118602209,0.02,66909.0,66904.0,0.03646012]
[1718118602421,0.02,66905.0,66904.0,0.152056]
[1718118602628,0.07215996,66906.0,66904.0,0.152056]
[1718118603753,0.001,66905.0,66904.0,0.159056]